[Event "Women's Speed Chess Championship - Qualifier 2 2021"]
[White "Sukandar, Irine Kharisma"]
[Black "Singgih, Diajeng Theresa"]
[WhiteFideId "7101937"]
[BlackFideId "7104391"]
[WhiteElo "2313"]
[BlackElo "1847"]
[Result "1-0"]
[Round "01"]
[TimeControl "180+1"]
[Date "Sat May 29 2021"]
[WhiteClock "0:00:11"]
[BlackClock "0:00:01"]

1. Nf3 {[%clk 0:02:55]}  d5 {[%clk 0:02:54]} 2. g3 {[%clk 0:02:55]}  c5 {[%clk 0:02:50]} 3. Bg2 {[%clk 0:02:54]}  Nc6 {[%clk 0:02:47]} 4. b3 {[%clk 0:02:54]}  e5 {[%clk 0:02:45]} 5. Bb2 {[%clk 0:02:53]}  e4 {[%clk 0:02:41]} 6. Ne5 {[%clk 0:02:50]}  Nxe5 {[%clk 0:02:37]} 7. Bxe5 {[%clk 0:02:50]}  Nf6 {[%clk 0:02:37]} 8. O-O {[%clk 0:02:45]}  Bd6 {[%clk 0:02:35]} 9. Bb2 {[%clk 0:02:40]}  O-O {[%clk 0:02:31]} 10. d3 {[%clk 0:02:39]}  exd3 {[%clk 0:02:28]} 11. cxd3 {[%clk 0:02:35]}  Re8 {[%clk 0:02:24]} 12. Nd2 {[%clk 0:02:33]}  Bg4 {[%clk 0:02:17]} 13. Re1 {[%clk 0:02:26]}  Qe7 {[%clk 0:02:11]} 14. Nf1 {[%clk 0:01:52]}  d4 {[%clk 0:02:05]} 15. Qd2 {[%clk 0:01:42]}  Qd7 {[%clk 0:02:02]} 16. e4 {[%clk 0:01:31]}  Bh3 {[%clk 0:01:55]} 17. Bh1 {[%clk 0:01:27]}  Ng4 {[%clk 0:01:43]} 18. Qc2 {[%clk 0:01:07]}  Qe6 {[%clk 0:01:39]} 19. Nd2 {[%clk 0:01:02]}  Qh6 {[%clk 0:01:26]} 20. Nc4 {[%clk 0:00:53]}  Bc7 {[%clk 0:01:22]} 21. f3 {[%clk 0:00:52]}  Nxh2 {[%clk 0:00:52]} 22. Qxh2 {[%clk 0:00:51]}  Re6 {[%clk 0:00:52]} 23. Bc1 {[%clk 0:00:49]}  Qh5 {[%clk 0:00:49]} 24. Bg2 {[%clk 0:00:40]}  Bxg3 {[%clk 0:00:44]} 25. Qxh3 {[%clk 0:00:27]}  Qxh3 {[%clk 0:00:42]} 26. Bxh3 {[%clk 0:00:27]}  Bxe1 {[%clk 0:00:41]} 27. Bxe6 {[%clk 0:00:27]}  Bc3 {[%clk 0:00:40]} 28. Bxf7+ {[%clk 0:00:24]}  Kxf7 {[%clk 0:00:40]} 29. Rb1 {[%clk 0:00:23]}  Ke6 {[%clk 0:00:37]} 30. Bb2 {[%clk 0:00:23]}  b5 {[%clk 0:00:34]} 31. Na3 {[%clk 0:00:21]}  Bd2 {[%clk 0:00:20]} 32. Rd1 {[%clk 0:00:17]}  Be3+ {[%clk 0:00:18]} 33. Kf1 {[%clk 0:00:18]}  a6 {[%clk 0:00:18]} 34. Ke2 {[%clk 0:00:18]}  h5 {[%clk 0:00:15]} 35. Nc2 {[%clk 0:00:18]}  Bf4 {[%clk 0:00:14]} 36. Rg1 {[%clk 0:00:17]}  g5 {[%clk 0:00:13]} 37. Bc1 {[%clk 0:00:17]}  Ke5 {[%clk 0:00:12]} 38. Bxf4+ {[%clk 0:00:17]}  Kxf4 {[%clk 0:00:12]} 39. Ne1 {[%clk 0:00:16]}  Rg8 {[%clk 0:00:09]} 40. Ng2+ {[%clk 0:00:16]}  Kg3 {[%clk 0:00:09]} 41. Ne1+ {[%clk 0:00:16]}  Kh2 {[%clk 0:00:09]} 42. Rg2+ {[%clk 0:00:15]}  Kh3 {[%clk 0:00:08]} 43. Kf2 {[%clk 0:00:15]}  g4 {[%clk 0:00:08]} 44. f4 {[%clk 0:00:13]}  g3+ {[%clk 0:00:08]} 45. Kf3 {[%clk 0:00:13]}  Rg4 {[%clk 0:00:06]} 46. Re2 {[%clk 0:00:13]}  h4 {[%clk 0:00:04]} 47. Ng2 {[%clk 0:00:13]}  Rg8 {[%clk 0:00:03]} 48. e5 {[%clk 0:00:13]}  Kh2 {[%clk 0:00:03]} 49. e6 {[%clk 0:00:13]}  h3 {[%clk 0:00:03]} 50. e7 {[%clk 0:00:10]}  hxg2 {[%clk 0:00:01]} 51. Rxg2+ {[%clk 0:00:11]} 1-0

[Event "Women's Speed Chess Championship - Qualifier 4 2021"]
[White "Zhai, Mo"]
[Black "Batsiashvili, Nino"]
[WhiteFideId "8600201"]
[BlackFideId "13602993"]
[WhiteElo "2342"]
[BlackElo "2286"]
[Result "0-1"]
[Round "10"]
[TimeControl "180+1"]
[Date "2021.06.03"]
[WhiteClock "0:00:03"]
[BlackClock "0:00:50"]

1. Nf3 {[%clk 0:03:00]}  d5 {[%clk 0:02:59]} 2. g3 {[%clk 0:03:00]}  c5 {[%clk 0:02:59]} 3. Bg2 {[%clk 0:03:00]}  Nc6 {[%clk 0:03:00]} 4. O-O {[%clk 0:02:57]}  Nf6 {[%clk 0:03:00]} 5. c4 {[%clk 0:02:56]}  d4 {[%clk 0:03:00]} 6. e3 {[%clk 0:02:56]}  e5 {[%clk 0:03:00]} 7. exd4 {[%clk 0:02:55]}  exd4 {[%clk 0:03:01]} 8. Re1+ {[%clk 0:02:50]}  Be7 {[%clk 0:03:01]} 9. d3 {[%clk 0:02:49]}  O-O {[%clk 0:03:00]} 10. h3 {[%clk 0:02:46]}  h6 {[%clk 0:02:57]} 11. Ne5 {[%clk 0:02:44]}  Nxe5 {[%clk 0:02:56]} 12. Rxe5 {[%clk 0:02:44]}  Bd6 {[%clk 0:02:56]} 13. Re1 {[%clk 0:02:43]}  Bf5 {[%clk 0:02:47]} 14. b4 {[%clk 0:02:32]}  cxb4 {[%clk 0:02:41]} 15. Bb2 {[%clk 0:02:32]}  Bc5 {[%clk 0:02:38]} 16. Qf3 {[%clk 0:02:17]}  Qd7 {[%clk 0:02:33]} 17. g4 {[%clk 0:02:17]}  Bg6 {[%clk 0:02:32]} 18. Nd2 {[%clk 0:02:15]}  Rae8 {[%clk 0:02:23]} 19. Nb3 {[%clk 0:01:58]}  b6 {[%clk 0:02:23]} 20. Qg3 {[%clk 0:01:24]}  Rxe1+ {[%clk 0:02:15]} 21. Rxe1 {[%clk 0:01:23]}  Re8 {[%clk 0:02:15]} 22. Rxe8+ {[%clk 0:01:05]}  Qxe8 {[%clk 0:02:12]} 23. Bxd4 {[%clk 0:00:51]}  Qe1+ {[%clk 0:02:08]} 24. Bf1 {[%clk 0:00:38]}  Bxd4 {[%clk 0:02:06]} 25. Nxd4 {[%clk 0:00:38]}  Qa1 {[%clk 0:01:54]} 26. Nc6 {[%clk 0:00:21]}  Qxa2 {[%clk 0:01:52]} 27. Nxb4 {[%clk 0:00:21]}  Qa1 {[%clk 0:01:40]} 28. Nc6 {[%clk 0:00:17]}  a5 {[%clk 0:01:40]} 29. d4 {[%clk 0:00:15]}  a4 {[%clk 0:01:38]} 30. d5 {[%clk 0:00:16]}  a3 {[%clk 0:01:38]} 31. Ne7+ {[%clk 0:00:09]}  Kh7 {[%clk 0:01:38]} 32. h4 {[%clk 0:00:04]}  a2 {[%clk 0:01:33]} 33. g5 {[%clk 0:00:03]}  Nh5 {[%clk 0:01:22]} 34. Qb8 {[%clk 0:00:02]}  Qxf1+ {[%clk 0:01:13]} 35. Kxf1 {[%clk 0:00:03]}  a1=Q+ {[%clk 0:01:13]} 36. Kg2 {[%clk 0:00:03]}  Be4+ {[%clk 0:01:09]} 37. f3 {[%clk 0:00:03]}  Bxf3+ {[%clk 0:00:50]} 38. Kxf3 {[%clk 0:00:03]}  Qf1+ {[%clk 0:00:50]} 0-1

[Event "Vezerkepzo GM June 2021"]
[White "Brhel, Jan"]
[Black "Manish, Anto Cristiano F"]
[WhiteFideId "14913070"]
[BlackFideId "25095927"]
[WhiteElo "2068"]
[BlackElo "2349"]
[Result "0-1"]
[Round "06"]
[TimeControl "5400+30"]
[Date "2021.06.20"]
[WhiteClock "0:17:19"]
[BlackClock "0:41:23"]

1. Nf3 {[%clk 1:27:38]}  d5 {[%clk 1:26:00]} 2. g3 {[%clk 1:27:19]}  c5 {[%clk 1:25:56]} 3. Bg2 {[%clk 1:26:46]}  Nc6 {[%clk 1:26:19]} 4. d4 {[%clk 1:26:02]}  Nf6 {[%clk 1:26:29]} 5. O-O {[%clk 1:25:42]}  e6 {[%clk 1:25:05]} 6. b3 {[%clk 1:25:23]}  cxd4 {[%clk 1:24:52]} 7. Nxd4 {[%clk 1:25:29]}  Bc5 {[%clk 1:24:59]} 8. Bb2 {[%clk 1:24:50]}  O-O {[%clk 1:25:11]} 9. c4 {[%clk 1:20:13]}  Bd7 {[%clk 1:16:58]} 10. cxd5 {[%clk 1:19:39]}  Nxd5 {[%clk 1:16:58]} 11. Nxc6 {[%clk 1:05:51]}  Bxc6 {[%clk 1:17:03]} 12. Nc3 {[%clk 1:01:03]}  Nxc3 {[%clk 1:11:03]} 13. Bxc3 {[%clk 1:01:24]}  Qb6 {[%clk 1:11:07]} 14. Bxc6 {[%clk 0:58:51]}  Qxc6 {[%clk 1:11:30]} 15. Qe1 {[%clk 0:55:22]}  Qe4 {[%clk 1:06:52]} 16. a3 {[%clk 0:49:56]}  Rfd8 {[%clk 1:04:44]} 17. b4 {[%clk 0:49:00]}  Bb6 {[%clk 1:04:33]} 18. Ra2 {[%clk 0:47:27]}  Rac8 {[%clk 1:00:02]} 19. Rd2 {[%clk 0:47:23]}  h5 {[%clk 0:49:00]} 20. h4 {[%clk 0:43:42]}  Rd5 {[%clk 0:48:17]} 21. Rxd5 {[%clk 0:42:43]}  exd5 {[%clk 0:48:06]} 22. Qd2 {[%clk 0:30:20]}  d4 {[%clk 0:46:10]} 23. Ba1 {[%clk 0:30:48]}  Rc2 {[%clk 0:46:00]} 24. Qg5 {[%clk 0:30:39]}  Rxe2 {[%clk 0:46:11]} 25. Kh2 {[%clk 0:24:27]}  f6 {[%clk 0:41:17]} 26. Qxh5 {[%clk 0:16:51]}  d3 {[%clk 0:41:28]} 27. Kg1 {[%clk 0:17:19]}  Rxf2 {[%clk 0:41:23]} 0-1

[Event "Grand Chess Tour Paris Rapid & Blitz 2021"]
[White "Rapport, Richard"]
[Black "Caruana, Fabiano"]
[WhiteFideId "738590"]
[BlackFideId "2020009"]
[WhiteElo "2727"]
[BlackElo "2773"]
[Result "1/2-1/2"]
[Round "09"]
[TimeControl "1500+10"]
[Date "2021.06.20"]
[WhiteClock "0:00:55"]
[BlackClock "0:00:32"]

1. Nf3 {[%clk 0:25:17]}  d5 {[%clk 0:25:19]} 2. g3 {[%clk 0:25:24]}  c5 {[%clk 0:25:19]} 3. Bg2 {[%clk 0:25:29]}  Nf6 {[%clk 0:25:22]} 4. O-O {[%clk 0:25:34]}  e6 {[%clk 0:25:30]} 5. d3 {[%clk 0:25:22]}  Nc6 {[%clk 0:25:37]} 6. Na3 {[%clk 0:25:26]}  e5 {[%clk 0:25:26]} 7. e4 {[%clk 0:25:26]}  d4 {[%clk 0:24:52]} 8. Nc4 {[%clk 0:25:17]}  Qc7 {[%clk 0:25:00]} 9. a4 {[%clk 0:24:59]}  Be6 {[%clk 0:24:45]} 10. b3 {[%clk 0:23:22]}  O-O-O {[%clk 0:21:43]} 11. Ng5 {[%clk 0:21:49]}  Bxc4 {[%clk 0:19:06]} 12. bxc4 {[%clk 0:21:55]}  Bd6 {[%clk 0:18:58]} 13. f4 {[%clk 0:21:01]}  Kb8 {[%clk 0:19:04]} 14. Rb1 {[%clk 0:19:26]}  h6 {[%clk 0:18:26]} 15. Nf3 {[%clk 0:18:01]}  h5 {[%clk 0:18:05]} 16. Nh4 {[%clk 0:15:36]}  Ng4 {[%clk 0:17:43]} 17. Nf5 {[%clk 0:14:52]}  g6 {[%clk 0:17:20]} 18. Nxd6 {[%clk 0:14:52]}  Rxd6 {[%clk 0:15:16]} 19. Qe2 {[%clk 0:14:47]}  f6 {[%clk 0:14:18]} 20. h3 {[%clk 0:14:08]}  Ne3 {[%clk 0:12:34]} 21. Bxe3 {[%clk 0:14:07]}  dxe3 {[%clk 0:12:42]} 22. Qxe3 {[%clk 0:14:08]}  Nb4 {[%clk 0:12:04]} 23. fxe5 {[%clk 0:13:33]}  fxe5 {[%clk 0:12:13]} 24. Rf2 {[%clk 0:13:38]}  Rhd8 {[%clk 0:11:24]} 25. Qg5 {[%clk 0:10:21]}  Nc6 {[%clk 0:09:32]} 26. h4 {[%clk 0:10:21]}  a6 {[%clk 0:09:32]} 27. Qd2 {[%clk 0:10:21]}  Ka7 {[%clk 0:08:55]} 28. Kh2 {[%clk 0:10:28]}  Nd4 {[%clk 0:07:41]} 29. Qg5 {[%clk 0:10:23]}  Nc6 {[%clk 0:07:49]} 30. Bh3 {[%clk 0:08:36]}  Qa5 {[%clk 0:07:44]} 31. Qh6 {[%clk 0:08:25]}  Qc7 {[%clk 0:05:01]} 32. Rbf1 {[%clk 0:08:32]}  Qb6 {[%clk 0:04:33]} 33. Rf7 {[%clk 0:07:58]}  Qb2 {[%clk 0:02:39]} 34. R1f2 {[%clk 0:07:52]}  Nd4 {[%clk 0:02:40]} 35. Qg7 {[%clk 0:07:07]}  Nxc2 {[%clk 0:02:48]} 36. d4 {[%clk 0:02:53]}  cxd4 {[%clk 0:01:43]} 37. c5 {[%clk 0:00:27]}  Rc6 {[%clk 0:01:50]} 38. Rc7 {[%clk 0:00:36]}  Rg8 {[%clk 0:01:13]} 39. Qd7 {[%clk 0:00:18]}  Rxc7 {[%clk 0:01:22]} 40. Qxc7 {[%clk 0:00:27]}  d3 {[%clk 0:01:21]} 41. Be6 {[%clk 0:00:13]}  Rb8 {[%clk 0:00:36]} 42. Bd5 {[%clk 0:00:12]}  Qb4 {[%clk 0:00:18]} 43. Kh3 {[%clk 0:00:19]}  Qb1 {[%clk 0:00:24]} 44. a5 {[%clk 0:00:13]}  Qh1+ {[%clk 0:00:27]} 45. Rh2 {[%clk 0:00:00]}  Qf1+ {[%clk 0:00:27]} 46. Rg2 {[%clk 0:00:00]}  d2 {[%clk 0:00:25]} 47. Qb6+ {[%clk 0:00:21]}  Ka8 {[%clk 0:00:34]} 48. c6 {[%clk 0:00:29]}  Qh1+ {[%clk 0:00:19]} 49. Rh2 {[%clk 0:00:37]}  Qf1+ {[%clk 0:00:19]} 50. Rg2 {[%clk 0:00:46]}  Qh1+ {[%clk 0:00:32]} 51. Rh2 {[%clk 0:00:55]}  Qf1+ {[%clk 0:00:32]} 1/2-1/2

[Event "Grand Chess Tour Paris Rapid & Blitz 2021"]
[White "Rapport, Richard"]
[Black "Caruana, Fabiano"]
[WhiteFideId "738590"]
[BlackFideId "2020009"]
[WhiteElo "2759"]
[BlackElo "2711"]
[Result "1-0"]
[Round "21"]
[TimeControl "300+1"]
[Date "2021.06.22"]
[WhiteClock "0:00:04"]
[BlackClock "0:00:03"]

1. Nf3 {[%clk 0:04:52]}  d5 {[%clk 0:04:59]} 2. g3 {[%clk 0:04:52]}  c5 {[%clk 0:04:59]} 3. Bg2 {[%clk 0:04:52]}  Nf6 {[%clk 0:04:59]} 4. O-O {[%clk 0:04:52]}  e6 {[%clk 0:04:59]} 5. d3 {[%clk 0:04:52]}  Nc6 {[%clk 0:04:59]} 6. Nbd2 {[%clk 0:04:52]}  Be7 {[%clk 0:04:59]} 7. e4 {[%clk 0:04:52]}  O-O {[%clk 0:04:59]} 8. Re1 {[%clk 0:04:52]}  Qc7 {[%clk 0:04:59]} 9. c3 {[%clk 0:04:52]}  b5 {[%clk 0:04:59]} 10. exd5 {[%clk 0:04:52]}  exd5 {[%clk 0:04:59]} 11. Nb3 {[%clk 0:04:49]}  Be6 {[%clk 0:04:28]} 12. Be3 {[%clk 0:04:22]}  Nd7 {[%clk 0:04:24]} 13. Ng5 {[%clk 0:04:20]}  Bxg5 {[%clk 0:04:05]} 14. Bxg5 {[%clk 0:04:21]}  Rfe8 {[%clk 0:04:06]} 15. d4 {[%clk 0:03:18]}  c4 {[%clk 0:04:06]} 16. Nc5 {[%clk 0:03:17]}  Nxc5 {[%clk 0:03:49]} 17. dxc5 {[%clk 0:03:09]}  Qd7 {[%clk 0:03:50]} 18. b4 {[%clk 0:03:04]}  d4 {[%clk 0:03:40]} 19. a4 {[%clk 0:02:49]}  a6 {[%clk 0:03:26]} 20. Qf3 {[%clk 0:02:37]}  Rac8 {[%clk 0:03:17]} 21. axb5 {[%clk 0:02:29]}  axb5 {[%clk 0:03:18]} 22. h4 {[%clk 0:01:42]}  d3 {[%clk 0:01:58]} 23. Ra6 {[%clk 0:01:19]}  h6 {[%clk 0:00:55]} 24. Bd2 {[%clk 0:01:10]}  Ne7 {[%clk 0:00:43]} 25. Rd6 {[%clk 0:01:09]}  Qa7 {[%clk 0:00:44]} 26. h5 {[%clk 0:00:31]}  Qa2 {[%clk 0:00:32]} 27. Qf4 {[%clk 0:00:31]}  Rcd8 {[%clk 0:00:23]} 28. Bf3 {[%clk 0:00:16]}  Rf8 {[%clk 0:00:19]} 29. g4 {[%clk 0:00:08]}  Nd5 {[%clk 0:00:19]} 30. Bxd5 {[%clk 0:00:04]}  Bxd5 {[%clk 0:00:24]} 31. Kh2 {[%clk 0:00:00]}  Qa8 {[%clk 0:00:17]} 32. Kg3 {[%clk 0:00:00]}  Be6 {[%clk 0:00:16]} 33. f3 {[%clk 0:00:00]}  Rxd6 {[%clk 0:00:17]} 34. cxd6 {[%clk 0:00:00]}  Rd8 {[%clk 0:00:17]} 35. Be3 {[%clk 0:00:00]}  Qc6 {[%clk 0:00:15]} 36. Bc5 {[%clk 0:00:01]}  Ra8 {[%clk 0:00:15]} 37. Qe5 {[%clk 0:00:01]}  Qd5 {[%clk 0:00:07]} 38. Qxd5 {[%clk 0:00:00]}  Bxd5 {[%clk 0:00:00]} 39. f4 {[%clk 0:00:00]}  Bc6 {[%clk 0:00:00]} 40. f5 {[%clk 0:00:00]}  f6 {[%clk 0:00:00]} 41. Kf4 {[%clk 0:00:00]}  Re8 {[%clk 0:00:00]} 42. Ra1 {[%clk 0:00:07]}  Rd8 {[%clk 0:00:00]} 43. Ra2 {[%clk 0:00:07]}  Kf7 {[%clk 0:00:02]} 44. Ra7+ {[%clk 0:00:07]}  Rd7 {[%clk 0:00:02]} 45. Ra6 {[%clk 0:00:08]}  Bb7 {[%clk 0:00:07]} 46. Ra2 {[%clk 0:00:08]}  Rd8 {[%clk 0:00:07]} 47. Ra7 {[%clk 0:00:08]}  Rd7 {[%clk 0:00:07]} 48. Ra1 {[%clk 0:00:08]}  Rd8 {[%clk 0:00:08]} 49. Kg3 {[%clk 0:00:07]}  Bc6 {[%clk 0:00:06]} 50. Kf2 {[%clk 0:00:07]}  Rd7 {[%clk 0:00:04]} 51. Ra6 {[%clk 0:00:07]}  Be4 {[%clk 0:00:04]} 52. Ke3 {[%clk 0:00:07]}  Bg2 {[%clk 0:00:04]} 53. Ra2 {[%clk 0:00:07]}  Bd5 {[%clk 0:00:06]} 54. Kd2 {[%clk 0:00:07]}  Bf3 {[%clk 0:00:06]} 55. Ra5 {[%clk 0:00:03]}  Bxg4 {[%clk 0:00:07]} 56. Rxb5 {[%clk 0:00:03]}  Bxf5 {[%clk 0:00:03]} 57. Ra5 {[%clk 0:00:03]}  Bg4 {[%clk 0:00:03]} 58. b5 {[%clk 0:00:08]}  Bxh5 {[%clk 0:00:03]} 59. Ke3 {[%clk 0:00:08]}  Bg4 {[%clk 0:00:05]} 60. b6 {[%clk 0:00:09]}  Bh3 {[%clk 0:00:05]} 61. Ra7 {[%clk 0:00:08]}  Ke6 {[%clk 0:00:03]} 62. Rxd7 {[%clk 0:00:04]}  Kd5 {[%clk 0:00:03]} 1-0

[Event "South Ural Cup B 2021"]
[White "Radzhabov, Rodion"]
[Black "Safin, Timur"]
[WhiteElo "2353"]
[BlackElo "2190"]
[Result "1-0"]
[Round "02"]
[TimeControl "5400+30"]
[Date "2021.06.26"]
[WhiteClock "0:02:01"]
[BlackClock "0:15:44"]

1. Nf3 {[%clk 1:30:32]}  d5 {[%clk 1:30:55]} 2. g3 {[%clk 1:30:50]}  c5 {[%clk 1:31:20]} 3. Bg2 {[%clk 1:31:15]}  Nc6 {[%clk 1:31:47]} 4. d4 {[%clk 1:31:34]}  Nf6 {[%clk 1:31:35]} 5. O-O {[%clk 1:31:54]}  Bg4 {[%clk 1:30:51]} 6. Ne5 {[%clk 1:24:31]}  Bf5 {[%clk 1:30:25]} 7. Nxc6 {[%clk 1:22:44]}  bxc6 {[%clk 1:30:49]} 8. dxc5 {[%clk 1:23:08]}  e5 {[%clk 1:30:36]} 9. c4 {[%clk 1:20:08]}  Bxc5 {[%clk 1:25:20]} 10. Nc3 {[%clk 1:18:44]}  O-O {[%clk 1:23:01]} 11. cxd5 {[%clk 1:14:47]}  cxd5 {[%clk 1:22:48]} 12. Bg5 {[%clk 1:10:13]}  d4 {[%clk 1:15:08]} 13. Nd5 {[%clk 0:56:54]}  Rb8 {[%clk 1:12:56]} 14. e4 {[%clk 0:39:35]}  Be6 {[%clk 1:11:17]} 15. Bxf6 {[%clk 0:39:28]}  gxf6 {[%clk 1:11:40]} 16. Rc1 {[%clk 0:35:55]}  Be7 {[%clk 1:04:42]} 17. b3 {[%clk 0:33:22]}  Ba3 {[%clk 0:55:55]} 18. Rc6 {[%clk 0:31:13]}  Kg7 {[%clk 0:38:12]} 19. f4 {[%clk 0:26:35]}  Rc8 {[%clk 0:34:08]} 20. Rxc8 {[%clk 0:20:55]}  Bxc8 {[%clk 0:28:20]} 21. Qh5 {[%clk 0:19:42]}  Bd6 {[%clk 0:27:27]} 22. Bh3 {[%clk 0:15:00]}  Bb7 {[%clk 0:22:40]} 23. Qg4+ {[%clk 0:10:20]}  Kh8 {[%clk 0:22:47]} 24. Qh4 {[%clk 0:10:45]}  Kg7 {[%clk 0:22:26]} 25. fxe5 {[%clk 0:08:08]}  Bxe5 {[%clk 0:22:13]} 26. Bf5 {[%clk 0:08:24]}  Rh8 {[%clk 0:20:37]} 27. Qg4+ {[%clk 0:04:26]}  Kf8 {[%clk 0:20:45]} 28. Rc1 {[%clk 0:02:41]}  h5 {[%clk 0:20:50]} 29. Qe2 {[%clk 0:02:14]}  h4 {[%clk 0:21:05]} 30. Qb5 {[%clk 0:01:58]}  Qa8 {[%clk 0:18:46]} 31. Nc7 {[%clk 0:01:25]}  Qb8 {[%clk 0:18:46]} 32. Qd7 {[%clk 0:01:08]}  hxg3 {[%clk 0:18:38]} 33. Bg6 {[%clk 0:01:13]}  gxh2+ {[%clk 0:18:42]} 34. Kh1 {[%clk 0:01:41]}  Bxe4+ {[%clk 0:18:27]} 35. Bxe4 {[%clk 0:02:08]}  Qb6 {[%clk 0:15:28]} 36. Bd5 {[%clk 0:01:44]}  Rh7 {[%clk 0:15:44]} 37. Ne6+ {[%clk 0:02:01]} 1-0

[Event "Vezerkepzo GM Mix 2021"]
[White "Egresi, Mate"]
[Black "Leszko, Bence"]
[WhiteFideId "738506"]
[BlackFideId "769070"]
[WhiteElo "2383"]
[BlackElo "2311"]
[Result "1/2-1/2"]
[Round "07"]
[TimeControl "5400+30"]
[Date "2021.06.29"]
[WhiteClock "0:06:34"]
[BlackClock "0:16:17"]

1. Nf3 {[%clk 1:28:09]}  d5 {[%clk 1:27:10]} 2. g3 {[%clk 1:28:09]}  c5 {[%clk 1:27:19]} 3. Bg2 {[%clk 1:28:30]}  Nc6 {[%clk 1:27:31]} 4. d4 {[%clk 1:28:54]}  cxd4 {[%clk 1:26:12]} 5. Nxd4 {[%clk 1:28:54]}  e5 {[%clk 1:26:32]} 6. Nxc6 {[%clk 1:29:45]}  bxc6 {[%clk 1:26:59]} 7. c4 {[%clk 1:30:09]}  Nf6 {[%clk 1:19:48]} 8. O-O {[%clk 1:30:06]}  Be7 {[%clk 1:18:23]} 9. Nc3 {[%clk 1:29:06]}  Be6 {[%clk 1:17:43]} 10. Bg5 {[%clk 1:28:43]}  e4 {[%clk 1:15:45]} 11. cxd5 {[%clk 1:25:41]}  cxd5 {[%clk 1:16:09]} 12. Qa4+ {[%clk 1:26:07]}  Qd7 {[%clk 1:16:19]} 13. Qxd7+ {[%clk 1:25:08]}  Nxd7 {[%clk 1:16:47]} 14. Be3 {[%clk 1:21:49]}  Bf6 {[%clk 1:12:22]} 15. Rfd1 {[%clk 1:18:13]}  Bxc3 {[%clk 1:12:06]} 16. bxc3 {[%clk 1:18:38]}  Nb6 {[%clk 1:10:29]} 17. Rdb1 {[%clk 1:11:38]}  O-O {[%clk 1:08:41]} 18. Bd4 {[%clk 1:11:38]}  Rfc8 {[%clk 1:08:32]} 19. a4 {[%clk 1:10:30]}  Nc4 {[%clk 1:06:12]} 20. a5 {[%clk 1:09:04]}  a6 {[%clk 1:06:12]} 21. f3 {[%clk 0:57:41]}  exf3 {[%clk 1:05:18]} 22. Bxf3 {[%clk 0:58:01]}  Rab8 {[%clk 1:04:44]} 23. Rb4 {[%clk 0:56:52]}  Nd2 {[%clk 1:01:08]} 24. Rb6 {[%clk 0:54:25]}  Ra8 {[%clk 0:54:52]} 25. Kf2 {[%clk 0:53:05]}  Nc4 {[%clk 0:54:55]} 26. Rb4 {[%clk 0:53:17]}  Nd6 {[%clk 0:54:55]} 27. Rab1 {[%clk 0:51:08]}  h6 {[%clk 0:51:46]} 28. Rb6 {[%clk 0:47:58]}  Nc4 {[%clk 0:44:47]} 29. e4 {[%clk 0:48:08]}  Rd8 {[%clk 0:45:16]} 30. R6b4 {[%clk 0:32:28]}  Nd2 {[%clk 0:37:02]} 31. exd5 {[%clk 0:31:25]}  Bf5 {[%clk 0:37:20]} 32. Re1 {[%clk 0:24:35]}  Nxf3 {[%clk 0:37:43]} 33. Kxf3 {[%clk 0:24:54]}  Rxd5 {[%clk 0:38:05]} 34. Re5 {[%clk 0:25:14]}  Rxe5 {[%clk 0:36:05]} 35. Bxe5 {[%clk 0:25:27]}  Rc8 {[%clk 0:36:25]} 36. Bd4 {[%clk 0:15:59]}  Bd3 {[%clk 0:36:10]} 37. Rb6 {[%clk 0:16:09]}  Rc7 {[%clk 0:34:58]} 38. Ke3 {[%clk 0:15:27]}  Bc4 {[%clk 0:35:22]} 39. Rb8+ {[%clk 0:15:43]}  Kh7 {[%clk 0:35:49]} 40. Bb6 {[%clk 0:16:03]}  Rc6 {[%clk 0:34:41]} 41. Rb7 {[%clk 0:15:30]}  Be6 {[%clk 0:24:48]} 42. Rc7 {[%clk 0:15:20]}  Rxc7 {[%clk 0:24:35]} 43. Bxc7 {[%clk 0:15:36]}  Kg6 {[%clk 0:24:45]} 44. Kd4 {[%clk 0:16:03]}  f6 {[%clk 0:24:14]} 45. c4 {[%clk 0:16:04]}  Kf7 {[%clk 0:06:22]} 46. c5 {[%clk 0:16:23]}  Ke7 {[%clk 0:06:32]} 47. c6 {[%clk 0:07:20]}  Bg4 {[%clk 0:06:47]} 48. Kc5 {[%clk 0:07:36]}  Bf3 {[%clk 0:07:08]} 49. Bd6+ {[%clk 0:05:46]}  Kd8 {[%clk 0:07:27]} 50. Kb6 {[%clk 0:05:22]}  Kc8 {[%clk 0:07:47]} 51. Bf8 {[%clk 0:05:48]}  g5 {[%clk 0:07:29]} 52. Bxh6 {[%clk 0:01:28]}  g4 {[%clk 0:07:58]} 53. Bf4 {[%clk 0:01:14]}  Be2 {[%clk 0:07:58]} 54. Kc5 {[%clk 0:01:36]}  f5 {[%clk 0:08:22]} 55. c7 {[%clk 0:01:06]}  Bd3 {[%clk 0:08:45]} 56. Kd4 {[%clk 0:01:32]}  Bb1 {[%clk 0:08:45]} 57. Ke3 {[%clk 0:01:58]}  Bc2 {[%clk 0:09:09]} 58. Be5 {[%clk 0:02:10]}  Bb1 {[%clk 0:09:49]} 59. Kf4 {[%clk 0:02:33]}  Bc2 {[%clk 0:10:13]} 60. Kg5 {[%clk 0:02:33]}  Bb1 {[%clk 0:10:33]} 61. Kf6 {[%clk 0:02:07]}  Bc2 {[%clk 0:10:59]} 62. Bd6 {[%clk 0:02:33]}  Bb1 {[%clk 0:11:21]} 63. Ke5 {[%clk 0:02:33]}  Bc2 {[%clk 0:11:47]} 64. Kd4 {[%clk 0:03:25]}  Bb1 {[%clk 0:12:12]} 65. Kc3 {[%clk 0:03:50]}  Be4 {[%clk 0:12:27]} 66. Be5 {[%clk 0:04:13]}  Bb1 {[%clk 0:12:52]} 67. Kd4 {[%clk 0:04:39]}  Bc2 {[%clk 0:13:18]} 68. Ke3 {[%clk 0:04:45]}  Bb1 {[%clk 0:13:28]} 69. Bd6 {[%clk 0:03:27]}  Bc2 {[%clk 0:13:45]} 70. Kf2 {[%clk 0:03:54]}  Bb1 {[%clk 0:14:10]} 71. Kg2 {[%clk 0:03:54]}  Be4+ {[%clk 0:14:36]} 72. Kf1 {[%clk 0:04:46]}  Bb1 {[%clk 0:16:17]} 73. Ke2 {[%clk 0:06:07]}  Bc2 {[%clk 0:16:17]} 74. Kd2 {[%clk 0:06:07]}  Bb1 {[%clk 0:16:17]} 75. Ke3 {[%clk 0:06:07]}  Bc2 {[%clk 0:16:17]} 76. Bf4 {[%clk 0:06:34]} 1/2-1/2